bitfinex-derivatives/quotes_BTCF0:USTF0_20251120
["timestamp","ask_amount","ask_price","bid_price","bid_amount"]
[1763645764462,0.0108838,91974.0,91941.0,0.0108877]
[1763645764662,0.0108841,91972.0,91960.0,0.0108854]
[1763645764868,0.0108821,91989.0,91960.0,0.0575554]
[1763645765069,0.03898776,92020.0,91960.0,0.0575554]
[1763645765070,0.00219803,91988.0,91987.0,0.0108822]
[1763645765261,0.00219803,91988.0,91987.0,0.02327]
[1763645765568,0.00219803,91988.0,91978.0,0.0001631]
[1763645766159,0.00219803,91988.0,91987.0,0.04667]
[1763645766360,0.00219803,91988.0,91983.0,0.0108827]
[1763645766361,0.00219803,91988.0,91978.0,0.0001631]
[1763645767475,0.00219803,91988.0,91961.0,0.0108852]
[1763645767476,0.0108833,91978.0,91961.0,0.0108852]
[1763645767668,0.00219803,91962.0,91961.0,0.0108852]
[1763645767865,0.00219803,91962.0,91961.0,0.04667]
[1763645768073,0.00219803,91962.0,91958.0,0.0108857]
[1763645768267,0.01371,92000.0,91954.0,0.01296]
[1763645768571,0.0001631,91986.0,91968.0,0.0001631]
[1763645768773,0.04611,91979.0,91978.0,0.001]
[1763645768975,0.00219803,91979.0,91968.0,0.0001631]
[1763645769172,0.02223,91969.0,91968.0,0.0001631]
[1763645769471,0.04830803,91969.0,91968.0,0.0001631]
[1763645770178,0.00219803,91969.0,91968.0,0.0234331]
[1763645770373,0.04830803,91969.0,91968.0,0.0001631]
[1763645770769,0.00219803,91969.0,91968.0,0.0001631]
[1763645771981,0.0108863,91953.0,91917.0,0.0108905]
[1763645772272,0.0108835,91977.0,91899.0,0.68608]
[1763645772273,0.00219803,91952.0,91932.0,0.0108887]
[1763645772575,0.00219803,91952.0,91881.0,0.0108948]
[1763645772874,0.0108912,91912.0,91901.0,0.0108924]
[1763645773075,0.01371,91931.0,91872.0,0.0238558]
[1763645773076,0.00219803,91902.0,91872.0,0.01296]
[1763645773375,0.0108924,91901.0,91897.0,0.00016321]
[1763645773575,0.01309043,91901.0,91897.0,0.00016321]
[1763645773874,0.00219803,91901.0,91900.0,0.01099013]
[1763645774276,0.00219803,91901.0,91900.0,9.753e-05]
[1763645775076,0.00016321,91916.0,91900.0,9.753e-05]
[1763645775272,0.00219803,91915.0,91907.0,0.0108917]
[1763645775469,0.00219803,91915.0,91900.0,9.753e-05]
[1763645775673,0.0108918,91907.0,91900.0,9.753e-05]
[1763645775875,0.00219803,91901.0,91900.0,9.753e-05]
[1763645777279,0.00219803,91901.0,91849.0,0.0108985]
[1763645777574,0.00219803,91901.0,91870.0,0.010896]
[1763645777575,0.010895,91880.0,91870.0,0.010896]
[1763645777773,0.00219803,91871.0,91848.0,0.0108986]
[1763645778076,0.00219803,91871.0,91868.0,0.0108963]
[1763645778375,9.565e-05,91870.0,91868.0,0.0108963]
[1763645778576,0.00229368,91870.0,91868.0,0.0108963]
[1763645778775,0.00229368,91870.0,91869.0,0.02327]
[1763645779178,0.00229368,91870.0,91869.0,0.04667]
[1763645779675,0.00229368,91870.0,91866.0,0.0108965]
[1763645780475,0.00229368,91870.0,91869.0,0.02327]
[1763645780677,0.00016321,91879.0,91878.0,0.0575652]
[1763645780865,0.68608,91928.0,91868.0,0.0544818]
[1763645781070,0.0108923,91903.0,91896.0,0.0108929]
[1763645781268,0.00219803,91897.0,91896.0,0.0108929]
[1763645781679,0.00219803,91897.0,91869.0,0.001]
[1763645781880,0.00219803,91897.0,91896.0,0.02327]
[1763645782085,0.0108904,91918.0,91872.0,0.0108958]
[1763645782086,0.0108901,91921.0,91914.0,0.0108908]
[1763645782273,0.68608,91928.0,91890.0,0.0108937]
[1763645782274,0.01308883,91915.0,91909.0,0.0108915]
[1763645782478,0.00219803,91915.0,91908.0,0.01105481]
[1763645782673,0.00219803,91915.0,91908.0,0.00016321]
[1763645782878,0.04611,91909.0,91908.0,0.00016321]
[1763645783078,0.04830803,91909.0,91908.0,0.00016321]
[1763645783781,0.04830803,91909.0,91901.0,0.0108924]
[1763645783782,0.01371,91908.0,91874.0,0.0108956]
[1763645783979,0.00219803,91907.0,91903.0,0.0108921]
[1763645784181,0.00219803,91907.0,91867.0,0.0108964]
[1763645784373,0.0108955,91876.0,91836.0,0.0109001]
[1763645784577,0.00219803,91875.0,91871.0,0.0108959]
[1763645784777,0.00219803,91875.0,91846.0,0.0108989]
[1763645784778,0.00219803,91875.0,91864.0,0.00016321]
[1763645784986,0.00219803,91875.0,91868.0,0.0108963]
[1763645785184,0.00219803,91875.0,91864.0,0.00016321]
[1763645785185,0.00219803,91875.0,91872.0,0.0108959]
[1763645785796,0.00219803,91875.0,91874.0,0.02327]
[1763645785984,0.00219803,91875.0,91872.0,0.0108959]
[1763645786379,0.0108961,91871.0,91867.0,0.0108964]
[1763645786691,0.00219803,91868.0,91865.0,0.0108967]
[1763645786990,0.00219803,91868.0,91867.0,0.002]
[1763645787285,0.00219803,91868.0,91867.0,0.0595665]
[1763645787488,0.00219803,91868.0,91864.0,0.01106001]
[1763645787489,0.01309433,91868.0,91864.0,0.01106001]
[1763645787684,0.01309433,91868.0,91867.0,0.001]
[1763645787985,0.01309433,91868.0,91867.0,0.0118965]
[1763645788184,0.00219803,91868.0,91865.0,0.0108967]
[1763645788590,0.0570067,91865.0,91864.0,0.00016321]
[1763645788885,0.01371,91854.0,91819.0,0.0109022]
[1763645789079,0.01371,91854.0,91792.0,0.05786977]
[1763645789080,0.00219803,91853.0,91792.0,0.05786977]
[1763645789386,0.00219803,91853.0,91777.0,0.09712371]
[1763645789387,0.00219803,91853.0,91797.0,0.0109048]
[1763645789586,0.00219803,91853.0,91843.0,0.0108992]
[1763645789788,0.00219803,91853.0,91807.0,0.0109035]
[1763645789789,0.0108987,91848.0,91839.0,0.00016331]
[1763645790086,0.01371,91854.0,91839.0,0.00016331]
[1763645790087,0.04555803,91840.0,91839.0,0.00016331]
[1763645790290,0.0109016,91824.0,91783.0,0.0109064]
[1763645790476,0.00219803,91819.0,91813.0,0.0109028]
[1763645790678,0.00219803,91819.0,91815.0,0.0109025]
[1763645790880,0.00219803,91819.0,91818.0,0.04445131]
[1763645791081,0.00219803,91819.0,91818.0,0.02240131]
[1763645791281,0.00219803,91819.0,91818.0,0.04445131]
[1763645791487,0.00219803,91819.0,91818.0,0.00013131]
[1763645791793,0.00219803,91819.0,91818.0,0.00113131]
[1763645791984,0.00219803,91819.0,91818.0,0.02340131]
[1763645792180,0.00219803,91819.0,91818.0,0.02240131]
[1763645792380,0.00219803,91819.0,91818.0,0.00113131]
[1763645792577,0.00219803,91819.0,91818.0,0.04699131]
[1763645792782,0.00219803,91819.0,91818.0,0.00113131]
[1763645793378,0.00016331,91828.0,91818.0,0.04699131]
[1763645793697,0.00016331,91828.0,91827.0,0.0567612]
[1763645793989,0.019,91885.0,91833.0,0.01324]
[1763645794181,0.00219803,91874.0,91854.0,0.01324]
[1763645794384,0.00219803,91874.0,91833.0,0.0241404]
[1763645794385,0.0108973,91861.0,91833.0,0.0241404]
[1763645794581,0.0108953,91878.0,91853.0,0.010898]
[1763645794582,0.00219803,91860.0,91853.0,0.010898]
[1763645794886,0.00219803,91860.0,91834.0,0.0109003]
[1763645794887,0.0108987,91848.0,91834.0,0.0109003]
[1763645795091,0.010899,91846.0,91837.0,0.0108999]
[1763645795292,0.00219803,91838.0,91832.0,0.01106381]
[1763645795482,0.00219803,91838.0,91835.0,0.0109002]
[1763645795878,0.0109004,91834.0,91832.0,0.00016331]
[1763645796084,0.00219803,91833.0,91832.0,0.01106391]
[1763645796377,0.04569803,91833.0,91832.0,0.00016331]
[1763645796780,0.0109007,91832.0,91818.0,0.00013131]
[1763645797097,0.0109013,91827.0,91821.0,0.0109018]
[1763645797388,0.00016331,91844.0,91837.0,0.0109]
[1763645797690,0.00219803,91838.0,91834.0,0.0109003]
[1763645798395,0.00219803,91838.0,91832.0,0.001]
[1763645798396,0.00219803,91838.0,91836.0,0.0109001]
[1763645798585,0.00219803,91838.0,91832.0,0.001]
[1763645798789,0.00219803,91838.0,91836.0,0.0109]
[1763645799088,0.0109,91837.0,91831.0,0.0109007]
[1763645799394,0.0109007,91831.0,91827.0,0.0109011]
[1763645799590,0.00016331,91844.0,91843.0,0.0567593]
[1763645799790,0.0108947,91883.0,91843.0,0.0567593]
[1763645799791,0.0108936,91892.0,91843.0,0.0108993]
[1763645799980,0.00219803,91879.0,91843.0,0.0108993]
[1763645800180,0.0108974,91860.0,91840.0,0.01324]
[1763645800389,0.00219803,91859.0,91855.0,0.0108979]
[1763645801990,0.0435,91856.0,91855.0,0.001]
[1763645802295,0.00219803,91856.0,91855.0,0.001]
[1763645803192,0.04569803,91856.0,91855.0,0.001]
[1763645804293,0.04569803,91856.0,91848.0,0.01106201]
[1763645804496,0.0435,91849.0,91848.0,0.00016331]
[1763645804696,0.04569803,91849.0,91848.0,0.00016331]
[1763645806094,0.00219803,91849.0,91848.0,0.00016331]
[1763645806604,0.02380803,91849.0,91848.0,0.00016331]
[1763645806788,0.00016331,91866.0,91865.0,0.0335567]
[1763645806987,0.00016331,91866.0,91865.0,0.07219469]
[1763645807297,0.0435,91894.0,91893.0,0.0108933]
[1763645807494,0.0442327,91894.0,91893.0,0.00219799]
[1763645807800,0.0435,91890.0,91889.0,0.0108938]
[1763645808094,0.0442327,91890.0,91889.0,0.00219799]
[1763645808497,0.0543948,91881.0,91880.0,0.00016331]
[1763645808794,0.0442327,91881.0,91880.0,0.0132562]
[1763645809101,0.0442327,91881.0,91880.0,0.00016331]
[1763645809295,0.0435,91866.0,91864.0,0.0108968]
[1763645809497,0.0435,91866.0,91865.0,0.00219799]
[1763645809685,0.0007327,91866.0,91865.0,0.00219799]
[1763645810092,0.28486081,91900.0,91865.0,0.01543799]
[1763645810289,0.0007327,91883.0,91873.0,0.00016331]
[1763645810497,0.0435,91881.0,91880.0,0.0108949]
[1763645810695,0.0007327,91881.0,91880.0,0.03575289]
[1763645810897,0.00016331,91892.0,91891.0,0.0108936]
[1763645811099,0.00016331,91892.0,91891.0,0.05895159]
[1763645811100,0.00089601,91892.0,91891.0,0.05895159]
[1763645811395,0.00089601,91892.0,91891.0,0.01309159]
[1763645811802,0.02250601,91892.0,91891.0,0.00219799]
[1763645812001,0.04439601,91892.0,91891.0,0.00219799]
[1763645812198,0.0108938,91890.0,91873.0,0.00016331]
[1763645812405,0.0007327,91889.0,91887.0,0.010894]
[1763645812594,0.0007327,91889.0,91888.0,0.00219799]
[1763645812789,0.0116266,91889.0,91888.0,0.00219799]
[1763645812995,0.0551266,91889.0,91888.0,0.00219799]
[1763645813501,0.0108944,91885.0,91881.0,0.0108948]
[1763645813704,0.0435,91883.0,91882.0,0.00219799]
[1763645813899,0.0442327,91883.0,91882.0,0.00219799]
[1763645814201,0.0007327,91883.0,91882.0,0.00219799]
[1763645815398,0.0116273,91883.0,91882.0,0.00319799]
[1763645815603,0.0442327,91883.0,91882.0,0.01409269]
[1763645815809,0.0007327,91883.0,91882.0,0.01409269]
[1763645816900,0.0223427,91883.0,91882.0,0.01409269]
[1763645817297,0.0007327,91883.0,91882.0,0.01409269]
[1763645817497,0.0007327,91883.0,91882.0,0.05995269]
[1763645817701,0.00016331,91892.0,91891.0,0.0567536]
[1763645817907,0.00089601,91892.0,91891.0,0.00219799]
[1763645818604,0.04439601,91892.0,91891.0,0.00219799]
[1763645819106,0.00089601,91892.0,91891.0,0.00219799]
[1763645819597,0.00089601,91892.0,91891.0,0.04805799]
[1763645820209,0.00089601,91892.0,91891.0,0.00219799]
[1763645820508,0.04439601,91892.0,91891.0,0.00219799]
[1763645821003,0.0108908,91915.0,91891.0,0.00219799]
[1763645821004,0.03898776,91927.0,91905.0,0.0108919]
[1763645821205,0.0007327,91915.0,91914.0,0.0567509]
[1763645821504,0.15659411,91940.0,91914.0,0.00219799]
[1763645821704,0.02161,91934.0,91933.0,0.0108886]
[1763645821907,0.02161,91934.0,91933.0,0.01308659]
[1763645821908,0.0223427,91934.0,91933.0,0.01308659]
[1763645822203,0.0439627,91934.0,91933.0,0.00219799]
[1763645823396,0.0540596,91925.0,91924.0,0.00016322]
[1763645823596,0.0540596,91925.0,91914.0,0.001]
[1763645823597,0.04317,91915.0,91914.0,0.0118909]
[1763645823802,0.0439027,91915.0,91914.0,0.00319799]
[1763645823998,0.0007327,91915.0,91882.0,0.05786977]
[1763645824202,0.0108923,91903.0,91892.0,0.00219799]
[1763645824403,0.0007327,91902.0,91901.0,0.04383]
[1763645824603,0.0007327,91902.0,91892.0,0.00219799]
[1763645824604,0.02155,91893.0,91892.0,0.00016322]
[1763645824809,0.0222827,91893.0,91892.0,0.00236121]
[1763645825007,0.0007327,91893.0,91892.0,0.04619121]
[1763645825202,0.00016322,91911.0,91910.0,0.0547214]
[1763645825403,0.00089592,91911.0,91910.0,0.03494939]
[1763645825807,0.00089592,91911.0,91910.0,0.05691939]
[1763645826009,0.00016322,91911.0,91910.0,0.05691939]
[1763645826508,0.04317,91936.0,91935.0,0.0108884]
[1763645826710,0.0108875,91943.0,91938.0,0.010888]
[1763645826909,0.0108866,91951.0,91942.0,0.00219799]
[1763645827111,0.0007327,91943.0,91942.0,0.00219799]
[1763645827311,0.0007327,91943.0,91908.0,0.01327]
[1763645827504,0.0108888,91933.0,91926.0,0.0108894]
[1763645827812,0.00016322,91935.0,91931.0,0.0108888]
[1763645828013,0.00016322,91935.0,91934.0,0.04602799]
[1763645828398,0.00089592,91935.0,91934.0,0.04602799]
[1763645828603,0.04406592,91935.0,91934.0,0.00219799]
[1763645828804,0.00089592,91935.0,91934.0,0.04602799]
[1763645829116,0.04406592,91935.0,91934.0,0.00219799]
[1763645829408,0.00089592,91935.0,91900.0,0.22535638]
[1763645829602,0.0540604,91918.0,91917.0,0.00219799]
[1763645829805,0.0547931,91918.0,91917.0,0.00219799]
[1763645830110,0.04317,91917.0,91895.0,0.0108931]
[1763645830305,0.0439027,91917.0,91916.0,0.00236121]
[1763645830508,0.0007327,91917.0,91916.0,0.04619121]
[1763645830819,0.00016322,91935.0,91932.0,0.0108887]
[1763645831009,0.00016322,91935.0,91931.0,0.0108888]
[1763645831010,0.0007327,91934.0,91931.0,0.0108888]
[1763645831217,0.0007327,91934.0,91933.0,0.00219799]
[1763645831408,0.0007327,91934.0,91933.0,0.02405799]
[1763645832505,0.00016322,91935.0,91934.0,0.0547185]
[1763645832706,0.0108846,91968.0,91960.0,0.0108854]
[1763645832909,0.010885,91964.0,91961.0,0.00219799]
[1763645833121,0.0007327,91962.0,91961.0,0.00219799]
[1763645833409,0.0007327,91962.0,91961.0,0.04602799]
[1763645833711,0.0007327,91962.0,91961.0,0.00219799]
[1763645833712,0.0439027,91962.0,91961.0,0.00219799]
[1763645833919,0.0331679,91962.0,91961.0,0.00219799]
[1763645834107,0.0007327,91962.0,91961.0,0.04602799]
[1763645834308,0.0007327,91962.0,91961.0,0.00219799]
[1763645834514,0.0439027,91962.0,91961.0,0.00219799]
[1763645834711,0.0007327,91962.0,91961.0,0.04602799]
[1763645835310,0.0001631,91971.0,91962.0,0.01327]
[1763645835620,0.0007327,91970.0,91969.0,0.02186]
[1763645835820,0.0007327,91970.0,91969.0,0.02405799]
[1763645836118,0.04317,92001.0,92000.0,0.0108807]
[1763645836313,0.07797553,92024.0,92000.0,0.0108807]
[1763645836314,0.15659411,92020.0,92000.0,0.00219799]
[1763645836508,0.0007327,92019.0,92000.0,0.00219799]
[1763645837014,0.0007327,92019.0,92005.0,0.0108801]
[1763645837210,0.0007327,92019.0,92006.0,0.00219799]
[1763645837419,0.0108799,92008.0,92006.0,0.00219799]
[1763645837713,0.0439027,92007.0,92006.0,0.00219799]
[1763645838112,0.0222827,92007.0,92006.0,0.00219799]
[1763645838326,0.010879,92015.0,92007.0,0.0108798]
[1763645838511,0.0001631,92021.0,92003.0,0.0001631]
[1763645838512,0.0007327,92014.0,92011.0,0.0108794]
[1763645838717,0.0007327,92014.0,92013.0,0.00219799]
[1763645838911,0.001,92019.0,92018.0,0.04383]
[1763645839107,0.0001631,92021.0,92020.0,0.04383]
[1763645839315,0.0108765,92036.0,92025.0,0.0108777]
[1763645839513,0.03898776,92065.0,92060.0,0.04383]
[1763645839714,0.0007327,92051.0,92036.0,0.01327]
[1763645839917,0.0007327,92051.0,92041.0,0.0108758]
[1763645840108,0.0007327,92051.0,92050.0,0.00219799]
[1763645840314,0.0222827,92051.0,92050.0,0.00219799]
[1763645840615,0.0222827,92051.0,92041.0,0.00016301]
[1763645840616,0.04317,92042.0,92041.0,0.00016301]
[1763645840817,0.0007327,92042.0,92041.0,0.046191]
[1763645841012,0.16763072,92060.0,92042.0,0.0108757]
[1763645841209,0.0007327,92059.0,92044.0,0.0108755]
[1763645841408,0.0007327,92059.0,92045.0,0.00219799]
[1763645841409,0.04317,92046.0,92045.0,0.00219799]
[1763645841718,0.0007327,92046.0,92045.0,0.00219799]
[1763645841917,0.0439027,92046.0,92045.0,0.00219799]
[1763645842713,0.04317,92042.0,92041.0,0.00016301]
[1763645842911,0.0439027,92042.0,92041.0,0.002361]
[1763645843107,0.0007327,92042.0,92041.0,0.024221]
[1763645843309,0.0007327,92042.0,92041.0,0.046191]
[1763645844916,0.0007327,92042.0,92041.0,0.024221]
[1763645845715,0.0007327,92042.0,92041.0,0.002361]
[1763645846022,0.0007327,92042.0,92041.0,0.024221]
[1763645846219,0.0007327,92042.0,92041.0,0.046191]
[1763645846619,0.0439027,92042.0,92041.0,0.002361]
[1763645846820,0.0007327,92042.0,92041.0,0.0570669]
[1763645847019,0.15675712,92060.0,92041.0,0.002361]
[1763645847319,0.00089571,92060.0,92059.0,0.04383]
[1763645847515,0.00089571,92060.0,92059.0,0.04602799]
[1763645847712,0.00089571,92060.0,92059.0,0.00219799]
[1763645848920,0.00089571,92060.0,92059.0,0.04559799]
[1763645849324,0.00016301,92060.0,92059.0,0.04559799]
[1763645850326,0.00089571,92060.0,92059.0,0.04559799]
[1763645850712,0.00089571,92060.0,92059.0,0.04676799]
[1763645850917,0.00016301,92060.0,92059.0,0.04676799]
[1763645851119,0.00089571,92060.0,92059.0,0.04676799]
[1763645851921,0.02387571,92060.0,92059.0,0.00219799]
[1763645852225,0.00089571,92060.0,92059.0,0.04676799]
[1763645852427,0.00016301,92060.0,92059.0,0.04676799]
[1763645852722,0.010871,92082.0,92075.0,0.0108718]
[1763645852928,0.0007327,92082.0,92081.0,0.02466799]
[1763645853638,0.0229227,92082.0,92081.0,0.00219799]
[1763645853923,0.0461727,92082.0,92072.0,0.00016292]
[1763645854129,0.0108721,92073.0,92072.0,0.04700091]
[1763645854426,0.0116048,92073.0,92072.0,0.05971091]
[1763645854728,0.0007327,92073.0,92072.0,0.05971091]
[1763645855028,0.0007327,92073.0,92072.0,0.00236091]
[1763645855323,0.0007327,92073.0,92072.0,0.07097311]
[1763645855729,0.00010415,92091.0,92090.0,0.04464]
[1763645855917,0.15659411,92120.0,92090.0,0.04683799]
[1763645856119,0.0108674,92113.0,92090.0,0.00219799]
[1763645856324,0.0007327,92112.0,92090.0,0.00219799]
[1763645856628,0.0108692,92098.0,92090.0,0.00219799]
[1763645856923,0.0007327,92097.0,92096.0,0.04464]
[1763645857126,0.0007327,92097.0,92066.0,0.0108729]
[1763645857127,0.0108705,92086.0,92085.0,0.00016292]
[1763645857424,0.0007327,92086.0,92085.0,0.00236091]
[1763645857618,0.0461727,92086.0,92085.0,0.00236091]
[1763645857821,0.0007327,92086.0,92085.0,0.04700091]
[1763645858125,0.0007327,92086.0,92085.0,0.00236091]
[1763645858328,0.0007327,92086.0,92085.0,0.00016292]
[1763645858329,0.0461727,92086.0,92085.0,0.00016292]
[1763645858530,0.0108725,92070.0,92061.0,0.0108734]
[1763645858829,0.0108727,92068.0,92062.0,0.00219799]
[1763645859023,0.0108729,92066.0,92062.0,0.00219799]
[1763645859223,0.0007327,92063.0,92062.0,0.04683799]
[1763645859423,0.0229227,92063.0,92062.0,0.00219799]
[1763645860124,0.0007327,92063.0,92062.0,0.00219799]
[1763645860315,0.0007327,92063.0,92062.0,0.00319799]
[1763645860523,0.0007327,92063.0,92062.0,0.04783799]
[1763645861025,0.0229227,92063.0,92062.0,0.00319799]
[1763645861326,0.0461727,92063.0,92062.0,0.00319799]
[1763645861529,0.0461727,92063.0,92062.0,0.001]
[1763645861718,0.0563143,92054.0,92053.0,0.00016292]
[1763645861919,0.0007327,92054.0,92053.0,0.04700091]
[1763645862718,0.0461727,92054.0,92053.0,0.00236091]
[1763645863032,0.0108756,92044.0,92035.0,0.0108765]
[1763645863230,0.0108763,92038.0,92036.0,0.00219799]
[1763645863529,0.0007327,92037.0,92036.0,0.00219799]
[1763645863926,0.0007327,92037.0,92036.0,0.04683799]
[1763645864830,0.0007327,92037.0,92027.0,0.00016292]
[1763645864831,0.0563174,92028.0,92027.0,0.00016292]
[1763645865020,0.0461727,92028.0,92027.0,0.00236091]
[1763645866124,0.0229227,92028.0,92027.0,0.00236091]
[1763645866326,0.0007327,92028.0,92027.0,0.00236091]
[1763645866827,0.0461727,92028.0,92027.0,0.00236091]
[1763645867535,0.0461727,92028.0,92027.0,0.00016292]
[1763645867733,0.04544,92025.0,92024.0,0.00011569]
[1763645867923,0.07050053,92025.0,92024.0,0.00011569]
[1763645868529,0.010878,92023.0,92001.0,0.0108805]
[1763645868727,0.010878,92023.0,91981.0,0.1086]
[1763645868728,0.00016302,92021.0,92014.0,0.010879]
[1763645868931,0.00016302,92021.0,92015.0,0.00219799]
[1763645869136,0.0007327,92016.0,92015.0,0.04683799]
[1763645869533,0.00083809,92016.0,92015.0,0.04683799]
[1763645869728,0.04627809,92016.0,92015.0,0.00219799]
[1763645869932,0.00083809,92016.0,92015.0,0.00219799]
[1763645870129,0.00083809,92016.0,92015.0,0.04683799]
[1763645871033,0.00010539,92016.0,92015.0,0.04683799]
[1763645872429,0.00083809,92016.0,92015.0,0.04683799]
[1763645872625,0.00083809,92016.0,92015.0,0.02466799]
[1763645873338,0.00083809,92016.0,92015.0,0.04683799]
[1763645875041,0.00010539,92016.0,92015.0,0.04683799]
[1763645875230,0.00016302,92021.0,92020.0,0.0555183]
[1763645875430,0.00016302,92021.0,92020.0,0.05771629]
[1763645875633,0.0108761,92040.0,92039.0,0.02247]
[1763645875845,0.0116088,92040.0,92039.0,0.02466799]
[1763645876132,0.01165072,92040.0,92039.0,0.02466799]
[1763645876536,0.05709072,92040.0,92039.0,0.00219799]
[1763645877141,0.00077462,92040.0,92039.0,0.00219799]
[1763645877342,0.00077462,92040.0,92039.0,0.02466799]
[1763645877544,0.00077462,92040.0,92039.0,0.04683799]
[1763645878434,0.00016302,92049.0,92039.0,0.04683799]
[1763645878435,0.00016302,92049.0,92048.0,0.055515]
[1763645878640,0.03898776,92080.0,92048.0,0.055515]
[1763645878641,0.0108729,92067.0,92066.0,0.04464]
[1763645878845,0.0007327,92067.0,92066.0,0.04683799]
[1763645879237,0.00027149,92086.0,92075.0,0.0108718]
[1763645879440,0.00027149,92086.0,92076.0,0.00219799]
[1763645879441,0.0007327,92085.0,92076.0,0.00219799]
[1763645879746,0.0108711,92082.0,92081.0,0.04464]
[1763645880040,0.0116038,92082.0,92081.0,0.04683799]
[1763645880437,0.0108722,92072.0,92071.0,0.00016291]
[1763645880639,0.0007327,92072.0,92071.0,0.0023609]
[1763645880845,0.0007327,92072.0,92071.0,0.0470009]
[1763645881141,0.0108709,92083.0,92082.0,0.04464]
[1763645881332,0.00027149,92086.0,92082.0,0.04464]
[1763645881333,0.01114209,92086.0,92085.0,0.04464]
[1763645881538,0.00100419,92086.0,92085.0,0.04683799]
[1763645881742,0.04644419,92086.0,92085.0,0.00219799]
[1763645881952,0.00100419,92086.0,92085.0,0.04683799]
[1763645882135,0.00100419,92086.0,92085.0,0.05770869]
[1763645882338,0.00016271,92090.0,92089.0,0.0564602]
[1763645882546,0.0108681,92107.0,92106.0,0.04471]
[1763645882738,0.0007327,92107.0,92106.0,0.04690799]
[1763645884046,0.03898776,92144.0,92125.0,0.04471]
[1763645884241,0.09746941,92172.0,92125.0,0.04471]
[1763645884242,0.20515243,92160.0,92128.0,0.01373]
[1763645884543,0.0108639,92143.0,92135.0,0.00016282]
[1763645884748,0.00891,92160.0,92135.0,0.00016282]
[1763645884749,0.0007327,92142.0,92141.0,0.02159]
[1763645884950,0.0007327,92142.0,92141.0,0.04690799]
[1763645885338,0.04476,92136.0,92135.0,0.00016282]
[1763645885533,0.04476,92136.0,92135.0,0.04707081]
[1763645885534,0.0007327,92136.0,92135.0,0.04707081]
[1763645885745,0.00891,92160.0,92135.0,0.00236081]
[1763645885936,0.0007327,92159.0,92135.0,0.00236081]
[1763645886136,0.0007327,92159.0,92140.0,0.01373]
[1763645886338,0.0007327,92159.0,92158.0,0.05777009]
[1763645886739,0.0563546,92159.0,92158.0,0.00219799]
[1763645887746,0.0108628,92152.0,92135.0,0.00016282]
[1763645887941,0.0007327,92151.0,92146.0,0.00219799]
[1763645888141,0.0007327,92151.0,92150.0,0.02159]
[1763645888338,0.0115956,92151.0,92150.0,0.04690799]
[1763645888539,0.0115956,92151.0,92150.0,0.00219799]
[1763645888734,0.0563556,92151.0,92150.0,0.00219799]
[1763645888936,0.0108636,92145.0,92135.0,0.00016282]
[1763645889139,0.01356,92157.0,92143.0,0.02159]
[1763645889140,0.0007327,92144.0,92143.0,0.02159]
[1763645889352,0.0454927,92144.0,92143.0,0.00219799]
[1763645889550,0.0007327,92144.0,92143.0,0.00219799]
[1763645889844,0.0454927,92144.0,92143.0,0.00219799]
[1763645890238,0.0007327,92144.0,92143.0,0.04690799]
[1763645890644,0.0007327,92144.0,92143.0,0.00219799]
[1763645890840,0.0237927,92144.0,92143.0,0.00219799]
[1763645891049,0.0007327,92144.0,92143.0,0.04690799]
[1763645891548,0.00027125,92166.0,92143.0,0.00219799]
[1763645891844,0.0007327,92165.0,92144.0,0.0108636]
[1763645892041,0.0007327,92165.0,92164.0,0.02378799]
[1763645892247,0.0007327,92165.0,92164.0,0.04690799]
[1763645893140,0.00027125,92166.0,92165.0,0.0108612]
[1763645893336,0.00100395,92166.0,92165.0,0.04690799]
[1763645893852,0.00100395,92166.0,92155.0,0.00016282]
[1763645893853,0.04476,92156.0,92155.0,0.00016282]
[1763645894145,0.0454927,92156.0,92155.0,0.00016282]
[1763645894540,0.0454927,92156.0,92155.0,0.00236081]
[1763645894736,0.0237927,92156.0,92155.0,0.00236081]
[1763645894946,0.0007327,92156.0,92155.0,0.04707081]
[1763645895354,0.0007327,92156.0,92155.0,0.00236081]
[1763645896550,0.0007327,92156.0,92155.0,0.02395081]
[1763645897142,0.034655,92156.0,92155.0,0.00236081]
[1763645897445,0.056355,92156.0,92155.0,0.00236081]
[1763645898954,0.0454927,92156.0,92155.0,0.00236081]
[1763645899149,0.0007327,92156.0,92155.0,0.04707081]
[1763645899346,0.00027125,92166.0,92165.0,0.0555712]
[1763645899651,0.00027125,92166.0,92165.0,0.05776919]
[1763645900056,0.0108598,92177.0,92176.0,0.04471]
[1763645900351,0.0007327,92177.0,92176.0,0.04690799]
[1763645900742,0.0108585,92189.0,92188.0,0.04471]
[1763645900948,0.0115912,92189.0,92188.0,0.04690799]
[1763645901351,0.0007327,92189.0,92188.0,0.04690799]
[1763645901759,0.0108584,92189.0,92188.0,0.00219799]
[1763645902056,0.0108584,92189.0,92188.0,0.04690799]
[1763645902251,0.0556184,92189.0,92188.0,0.00219799]
[1763645902454,0.0576184,92189.0,92188.0,0.00219799]
[1763645903040,0.0359184,92189.0,92188.0,0.00219799]
[1763645903252,0.0128584,92189.0,92188.0,0.04690799]
[1763645903446,0.0138584,92189.0,92188.0,0.04690799]
[1763645903645,0.003,92189.0,92188.0,0.04690799]
[1763645904255,0.0108575,92197.0,92196.0,0.02159]
[1763645904458,0.02306,92197.0,92196.0,0.00219803]
[1763645904650,0.04476,92197.0,92196.0,0.00219803]
[1763645905043,0.0108573,92199.0,92196.0,0.00219803]
[1763645905554,0.0108573,92199.0,92198.0,0.04471]
[1763645905756,0.0108573,92199.0,92198.0,0.04690803]
[1763645905954,0.0339173,92199.0,92198.0,0.00219803]
[1763645906350,0.0359173,92199.0,92198.0,0.00219803]
[1763645906964,0.0108571,92201.0,92200.0,0.04471]
[1763645907152,0.0108571,92201.0,92200.0,0.04690803]
[1763645907851,0.0108571,92201.0,92200.0,0.00219803]
[1763645907852,0.0556171,92201.0,92200.0,0.00219803]
[1763645908152,0.0108571,92201.0,92200.0,0.04690803]
[1763645908553,0.0339171,92201.0,92200.0,0.00219803]
[1763645908750,0.0108571,92201.0,92200.0,0.04690803]
[1763645908959,0.0108585,92188.0,92187.0,0.04474273]
[1763645909160,0.0108585,92188.0,92187.0,0.04694076]
[1763645909364,0.0108585,92188.0,92175.0,0.01096]
[1763645909365,0.0108585,92188.0,92160.0,0.05831]
[1763645909366,0.0108615,92164.0,92160.0,0.05831]
[1763645909665,0.0108615,92164.0,92139.0,0.05786977]
[1763645909666,0.0563713,92164.0,92163.0,0.00219803]
[1763645913253,0.0563713,92164.0,92154.0,0.00016273]
[1763645913254,0.0536424,92155.0,92154.0,0.00016273]
[1763645913568,0.0536424,92155.0,92130.0,0.02255]
[1763645913569,0.0108646,92137.0,92130.0,0.02255]
[1763645913862,0.04278,92132.0,92131.0,0.00219803]
[1763645914053,0.04278,92132.0,92116.0,1.510867]
[1763645914258,0.0108667,92120.0,92119.0,0.04357]
[1763645914460,0.0108661,92124.0,92123.0,0.04357]
[1763645914671,0.0108646,92137.0,92135.0,0.04357]